fUST/lending_fUST_20240901
["ID","MTS","AMOUNT","RATE_DAILY","PERIOD"]
[336764313,1725120642794,-600.0,0.00032851,7]
[336764314,1725120642803,-3369.68526808,0.00032866,4]
[336764315,1725120642813,-400.0,0.00032875,2]
[336764316,1725120642822,-187.0,0.00032875,2]
[336764317,1725120642831,-1776.71429511,0.00032876,15]
[336764318,1725120642840,-407.39511092,0.00032876,31]
[336764319,1725120642850,-500.0,0.00032876,31]
[336764320,1725120642859,-500.0,0.00032876,31]
[336764321,1725120642869,-500.0,0.00032876,31]
[336764322,1725120642878,-770.31,0.00032876,31]
[336764323,1725120642888,-500.0,0.00032876,31]
[336764325,1725120642897,-500.0,0.00032876,31]
[336764326,1725120642907,-501.29122431,0.00032876,31]
[336764327,1725120642917,-500.0,0.00032876,31]
[336764328,1725120642927,-500.0,0.00032876,31]
[336764329,1725120642938,-500.0,0.00032876,31]
[336764330,1725120642948,-500.0,0.00032876,31]
[336764331,1725120642959,-500.0,0.00032876,31]
[336764332,1725120642969,-500.0,0.00032876,31]
[336764333,1725120642978,-500.0,0.00032876,31]
[336764334,1725120642988,-500.0,0.00032876,31]
[336764335,1725120642997,-500.0,0.00032876,31]
[336764336,1725120643007,-500.0,0.00032876,31]
[336764337,1725120643016,-500.0,0.00032876,31]
[336764338,1725120643025,-518.92201675,0.00032876,31]
[336764339,1725120643035,-500.0,0.00032876,31]
[336764340,1725120643044,-504.53481854,0.00032876,31]
[336764341,1725120643054,-500.0,0.00032876,31]
[336764342,1725120643064,-500.0,0.00032876,31]
[336764343,1725120643073,-502.24266996,0.00032876,31]
[336764344,1725120643082,-500.0,0.00032876,31]
[336764345,1725120643092,-500.0,0.00032876,31]
[336764346,1725120643101,-537.01,0.00032876,31]
[336764347,1725120643111,-500.0,0.00032876,31]
[336764348,1725120643120,-500.0,0.00032876,30]
[336764349,1725120643130,-457.29683445,0.00032876,31]
[336764350,1725120643140,-500.0,0.00032876,31]
[336764351,1725120643149,-500.0,0.00032876,31]
[336764353,1725120643158,-151.0,0.00032876,7]
[336764354,1725120643167,-500.0,0.00032876,31]
[336764356,1725120643177,-945.85,0.00032876,31]
[336764357,1725120643186,-502.16938635,0.00032876,31]
[336764358,1725120643195,-500.0,0.00032876,31]
[336764359,1725120643205,-500.0,0.00032876,31]
[336764360,1725120643214,-500.0,0.00032876,31]
[336764361,1725120643223,-500.0,0.00032876,31]
[336764362,1725120643234,-500.0,0.00032876,31]
[336764363,1725120643246,-151.0,0.00032876,7]
[336764364,1725120643256,-477.81897494,0.00032876,31]
[336764365,1725120643266,-1044.67,0.00032876,31]
[336764366,1725120643275,-500.0,0.00032876,31]
[336764367,1725120643284,-500.0,0.00032876,31]
[336764368,1725120643293,-500.0,0.00032876,31]
[336764369,1725120643303,-201.82732898,0.00032876,31]
[336764370,1725120643313,-500.0,0.00032876,31]
[336764371,1725120643322,-500.0,0.00032876,31]
[336764372,1725120643331,-500.0,0.00032876,31]
[336764373,1725120643341,-500.0,0.00032876,31]
[336764374,1725120643354,-500.0,0.00032876,31]
[336764375,1725120643366,-872.22,0.00032876,14]
[336764376,1725120643376,-500.0,0.00032876,31]
[336764377,1725120643385,-500.0,0.00032876,31]
[336764378,1725120643485,-239.52337207,0.00032876,31]
[336764379,1725120643494,-500.0,0.00032876,31]
[336764380,1725120643503,-500.0,0.00032876,31]
[336764381,1725120643512,-500.0,0.00032876,31]
[336764383,1725120643521,-500.0,0.00032876,31]
[336764384,1725120643530,-500.0,0.00032876,31]
[336764385,1725120643539,-985.58,0.00032876,31]
[336764386,1725120643548,-1092.43,0.00032876,31]
[336764387,1725120643557,-151.0,0.00032876,7]
[336764388,1725120643566,-502.07123917,0.00032876,31]
[336764389,1725120643575,-1040.15,0.00032876,31]
[336764390,1725120643587,-151.0,0.00032876,7]
[336764391,1725120643598,-500.0,0.00032876,31]
[336764392,1725120643608,-247.580591,0.00032876,7]
[336764393,1725120643617,-858.86,0.00032876,31]
[336764394,1725120643627,-500.0,0.00032876,31]
[336764395,1725120643637,-247.580591,0.00032876,7]
[336764396,1725120643646,-500.0,0.00032876,31]
[336764397,1725120643655,-504.6596549,0.00032876,31]
[336764398,1725120643665,-500.0,0.00032876,31]
[336764399,1725120643674,-500.0,0.00032876,31]
[336764400,1725120643683,-970.65,0.00032876,7]
[336764401,1725120643692,-151.0,0.00032876,7]
[336764402,1725120643702,-151.0,0.00032876,7]
[336764403,1725120643712,-151.0,0.00032876,7]
[336764404,1725120643722,-500.0,0.00032876,31]
[336764405,1725120643733,-500.0,0.00032876,31]
[336764406,1725120643744,-151.0,0.00032876,7]
[336764407,1725120643754,-500.0,0.00032876,31]
[336764408,1725120643765,-151.0,0.00032876,7]
[336764409,1725120643775,-971.04,0.00032876,31]
[336764410,1725120643784,-500.0,0.00032876,31]
[336764411,1725120643793,-500.0,0.00032876,31]
[336764412,1725120643803,-833.14,0.00032876,31]
[336764413,1725120643812,-500.0,0.00032876,31]
[336764414,1725120643821,-500.0,0.00032876,31]
[336764415,1725120643830,-500.0,0.00032876,31]
[336764416,1725120643840,-500.0,0.00032876,31]
[336764417,1725120643850,-1151.94,0.00032876,31]
[336764418,1725120643859,-500.0,0.00032876,31]
[336764419,1725120643869,-500.0,0.00032876,31]
[336764420,1725120643878,-500.0,0.00032876,31]
[336764421,1725120643887,-500.0,0.00032876,31]
[336764422,1725120643897,-1142.18,0.00032876,31]
[336764423,1725120643907,-500.0,0.00032876,31]
[336764424,1725120643918,-500.0,0.00032876,31]
[336764425,1725120643928,-1149.95,0.00032876,31]
[336764426,1725120643937,-500.0,0.00032876,31]
[336764427,1725120643946,-500.0,0.00032876,31]
[336764428,1725120643956,-500.0,0.00032876,31]
[336764429,1725120643965,-500.0,0.00032876,31]
[336764430,1725120643974,-500.0,0.00032876,31]
[336764431,1725120643983,-744.75,0.00032876,31]
[336764432,1725120643992,-500.0,0.00032876,31]
[336764433,1725120644003,-500.0,0.00032876,31]
[336764434,1725120644013,-500.0,0.00032876,31]
[336764435,1725120644022,-500.0,0.00032876,31]
[336764436,1725120644032,-1032.31,0.00032876,31]
[336764437,1725120644041,-500.0,0.00032876,31]
[336764438,1725120644050,-1051.0,0.00032876,31]
[336764439,1725120644060,-415.8466877,0.00032876,31]
[336764440,1725120644070,-500.0,0.00032876,31]
[336764441,1725120644080,-500.0,0.00032876,31]
[336764442,1725120644089,-524.71480126,0.00032876,31]
[336764443,1725120644098,-454.208877,0.00032876,7]
[336764444,1725120644109,-500.0,0.00032876,31]
[336764445,1725120644119,-2980.53,0.00032876,31]
[336764446,1725120644128,-500.0,0.00032876,31]
[336764447,1725120644138,-500.0,0.00032876,31]
[336764448,1725120644148,-1528.02,0.00032876,31]
[336764449,1725120644159,-454.208877,0.00032876,7]
[336764450,1725120644168,-3557.67,0.00032876,31]
[336764451,1725120644177,-500.0,0.00032876,31]
[336764452,1725120644187,-1205.84,0.00032876,31]
[336764453,1725120644197,-500.0,0.00032876,31]
[336764454,1725120644207,-500.0,0.00032876,31]
[336764455,1725120644216,-500.0,0.00032876,31]
[336764456,1725120644226,-151.0,0.00032876,7]
[336764457,1725120644235,-151.0,0.00032876,7]
[336764458,1725120644244,-500.0,0.00032876,31]
[336764459,1725120644255,-500.0,0.00032876,31]
[336764460,1725120644264,-500.0,0.00032876,31]
[336764461,1725120644275,-500.0,0.00032876,31]
[336764462,1725120644284,-500.0,0.00032876,31]
[336764463,1725120644295,-3199.12,0.00032876,31]
[336764464,1725120644304,-500.0,0.00032876,31]
[336764465,1725120644314,-500.0,0.00032876,31]
[336764466,1725120644323,-500.0,0.00032876,31]
[336764467,1725120644332,-500.0,0.00032876,31]
[336764468,1725120644342,-500.0,0.00032876,31]
[336764469,1725120644351,-509.340629,0.00032876,31]
[336764470,1725120644360,-6569.78,0.00032876,31]
[336764471,1725120644369,-1029.2,0.00032876,31]
[336764472,1725120644379,-500.0,0.00032876,31]
[336764473,1725120644388,-1412.51,0.00032876,31]
[336764474,1725120644397,-790.79,0.00032876,31]
[336764475,1725120644407,-500.0,0.00032876,31]
[336764476,1725120644418,-2223.17,0.00032876,31]
[336764477,1725120644427,-500.0,0.00032876,31]
[336764478,1725120644437,-500.0,0.00032876,31]
[336764479,1725120644446,-500.0,0.00032876,31]
[336764480,1725120644455,-151.0,0.00032876,7]
[336764481,1725120644464,-151.0,0.00032876,7]
[336764482,1725120644474,-500.0,0.00032876,31]
[336764483,1725120644483,-1508.05,0.00032876,31]
[336764484,1725120644492,-151.0,0.00032876,7]
[336764485,1725120644501,-500.0,0.00032876,31]
[336764486,1725120644510,-151.0,0.00032876,7]
[336764487,1725120644520,-500.0,0.00032876,31]
[336764488,1725120644529,-500.0,0.00032876,31]
[336764489,1725120644538,-500.0,0.00032876,31]
[336764490,1725120644548,-500.0,0.00032876,31]
[336764491,1725120644557,-500.0,0.00032876,31]
[336764492,1725120644566,-2669.33,0.00032876,31]
[336764493,1725120644577,-151.0,0.00032876,7]
[336764494,1725120644586,-500.0,0.00032876,31]
[336764495,1725120644598,-151.0,0.00032876,7]
[336764496,1725120644607,-779.61,0.00032876,31]
[336764497,1725120644617,-578.47,0.00032876,31]
[336764498,1725120644626,-500.0,0.00032876,31]
[336764499,1725120644637,-1249.64,0.00032876,31]
[336764500,1725120644646,-1249.64,0.00032876,31]
[336764501,1725120644656,-1249.64,0.00032876,31]
[336764502,1725120644670,-1249.64,0.00032876,31]
[336764503,1725120644680,-1249.64,0.00032876,31]
[336764504,1725120644689,-1249.64,0.00032876,31]
[336764505,1725120644698,-1249.64,0.00032876,31]
[336764506,1725120644708,-1249.64,0.00032876,31]
[336764507,1725120644717,-1249.64,0.00032876,31]
[336764508,1725120644727,-500.0,0.00032876,31]
[336764509,1725120644736,-1249.64,0.00032876,31]
[336764510,1725120644746,-500.0,0.00032876,31]
[336764511,1725120644757,-1249.64,0.00032876,31]
[336764512,1725120644767,-1091.89,0.00032876,31]
[336764513,1725120644777,-1249.64,0.00032876,31]
[336764514,1725120644786,-500.0,0.00032876,31]
[336764515,1725120644795,-500.0,0.00032876,31]
[336764516,1725120644804,-500.0,0.00032876,31]
[336764517,1725120644814,-500.0,0.00032876,31]
[336764518,1725120644824,-722.03,0.00032876,31]
[336764519,1725120644834,-500.0,0.00032876,31]
[336764520,1725120644844,-625.0,0.00032876,31]
[336764521,1725120644929,-500.0,0.00032876,31]
[336764522,1725120644939,-500.0,0.00032876,31]
[336764523,1725120644949,-3770.87,0.00032876,31]
[336764524,1725120644959,-500.0,0.00032876,31]
[336764525,1725120644968,-500.0,0.00032876,31]
[336764526,1725120644979,-500.0,0.00032876,31]
[336764527,1725120644989,-730.46,0.00032876,31]
[336764528,1725120644998,-775.835047,0.00032876,7]
[336764529,1725120645007,-775.835047,0.00032876,7]
[336764530,1725120645018,-500.0,0.00032876,31]
[336764531,1725120645027,-151.045346,0.00032876,7]
[336764532,1725120645037,-500.0,0.00032876,31]
[336764533,1725120645046,-151.045346,0.00032876,7]
[336764534,1725120645058,-500.0,0.00032876,31]
[336764535,1725120645068,-500.0,0.00032876,31]
[336764536,1725120645078,-2085.42,0.00032876,31]
[336764537,1725120645088,-500.0,0.00032876,31]
[336764538,1725120645097,-769.0723784,0.00032876,7]
[336764539,1725120645314,-6.7626686,0.00032876,7]
[336764541,1725120645324,-775.835047,0.00032876,7]
[336764543,1725120645334,-108.82942971,0.00032876,7]
[336764546,1725120645580,-42.21591629,0.00032876,7]
[336764547,1725120645592,-500.0,0.00032876,31]
[336764548,1725120645602,-151.045346,0.00032876,7]
[336764549,1725120645611,-1001.93,0.00032876,31]
[336764550,1725120645622,-500.0,0.00032876,31]
[336764551,1725120645633,-580.6488846,0.00032876,31]
[336764552,1725120645643,-500.0,0.00032876,31]
[336764553,1725120645652,-1857.65,0.00032876,31]
[336764554,1725120645664,-500.0,0.00032876,31]
[336764555,1725120645674,-500.0,0.00032876,31]
[336764556,1725120645684,-500.0,0.00032876,31]
[336764557,1725120645693,-500.44929182,0.00032876,31]
[336764558,1725120645703,-500.0,0.00032876,31]
[336764559,1725120645712,-500.0,0.00032876,31]
[336764560,1725120645722,-295.23963889,0.00032876,31]
[336764561,1725120645732,-500.0,0.00032876,31]
[336764562,1725120645742,-500.0,0.00032876,31]
[336764563,1725120645751,-539.49,0.00032876,31]
[336764564,1725120645762,-500.0,0.00032876,31]
[336764565,1725120645771,-1433.71,0.00032876,31]
[336764566,1725120645781,-1327.55,0.00032876,7]
[336764567,1725120645791,-1365.11,0.00032876,31]
[336764568,1725120645800,-16780.67868411,0.00032876,8]
[336764574,1725120646287,-7318.94131589,0.00032876,8]
[336764575,1725120646298,-500.0,0.00032876,31]
[336764576,1725120646307,-500.0,0.00032876,31]
[336764577,1725120646317,-607.4,0.00032876,31]
[336764579,1725120646327,-1353.73,0.00032876,31]
[336764580,1725120646336,-500.0,0.00032876,31]
[336764581,1725120646346,-500.0,0.00032876,31]
[336764582,1725120646356,-500.0,0.00032876,31]
[336764583,1725120646366,-810.22,0.00032876,31]
[336764584,1725120646376,-699.16,0.00032876,31]
[336764585,1725120646385,-500.0,0.00032876,31]
[336764586,1725120646395,-3780.38,0.00032876,31]
[336764587,1725120646405,-4887.42,0.00032876,31]
[336764589,1725120646416,-500.0,0.00032876,2]
[336764591,1725120646426,-274.46571386,0.00032876,31]
[336764593,1725120646435,-1658.15,0.00032876,21]
[336764594,1725120646444,-500.0,0.00032876,31]
[336764595,1725120646453,-3100.57,0.00032876,31]
[336764596,1725120646463,-500.0,0.00032876,31]
[336764597,1725120646472,-500.0,0.00032876,31]
[336764598,1725120646482,-500.0,0.00032876,31]
[336764599,1725120646491,-500.0,0.00032876,31]
[336764600,1725120646502,-500.0,0.00032876,31]
[336764601,1725120646512,-500.0,0.00032876,31]
[336764602,1725120646522,-500.0,0.00032876,31]
[336764603,1725120646531,-500.0,0.00032876,31]
[336764604,1725120646541,-500.0,0.00032876,31]
[336764605,1725120646552,-500.0,0.00032876,31]
[336764606,1725120646563,-1207.05,0.00032876,31]
[336764607,1725120646573,-500.0,0.00032876,31]
[336764608,1725120646583,-500.0,0.00032876,31]
[336764609,1725120646596,-500.0,0.00032876,31]
[336764610,1725120646605,-2215.45,0.00032876,31]
[336764611,1725120646615,-500.0,0.00032876,31]
[336764612,1725120646625,-500.0,0.00032876,31]
[336764613,1725120646636,-505.08,0.00032876,31]
[336764614,1725120646645,-500.0,0.00032876,31]
[336764615,1725120646655,-500.0,0.00032876,31]
[336764616,1725120646668,-654.29,0.00032876,31]
[336764617,1725120646678,-500.0,0.00032876,31]
[336764618,1725120646687,-500.0,0.00032876,31]
[336764619,1725120646697,-500.0,0.00032876,31]
[336764620,1725120646707,-916.35,0.00032876,31]
[336764621,1725120646716,-500.0,0.00032876,31]
[336764622,1725120646726,-500.0,0.00032876,31]
[336764623,1725120646736,-500.0,0.00032876,31]
[336764624,1725120646745,-500.0,0.00032876,31]
[336764625,1725120646755,-500.0,0.00032876,31]
[336764626,1725120646765,-500.0,0.00032876,31]
[336764627,1725120646775,-500.0,0.00032876,31]
[336764628,1725120646785,-500.0,0.00032876,31]
[336764629,1725120646794,-500.0,0.00032876,31]
[336764630,1725120646803,-500.0,0.00032876,31]
[336764631,1725120646813,-500.0,0.00032876,31]
[336764632,1725120646822,-500.0,0.00032876,31]
[336764633,1725120646832,-500.0,0.00032876,31]
[336764634,1725120646841,-500.0,0.00032876,31]
[336764635,1725120646851,-500.0,0.00032876,31]
[336764636,1725120646860,-4688.82,0.00032876,31]
[336764637,1725120646870,-500.0,0.00032876,31]
[336764638,1725120646879,-500.0,0.00032876,31]
[336764639,1725120646889,-656.73,0.00032876,31]
[336764640,1725120646899,-500.0,0.00032876,31]
[336764641,1725120646908,-883.92,0.00032876,31]
[336764642,1725120646919,-500.0,0.00032876,31]
[336764643,1725120646929,-10926.76,0.00032876,31]
[336764644,1725120646938,-513.67594014,0.00032876,31]
[336764645,1725120646947,-500.0,0.00032876,31]
[336764646,1725120646956,-2384.24,0.00032876,31]
[336764647,1725120646966,-500.0,0.00032876,31]
[336764648,1725120646976,-610.7768278,0.00032876,31]
[336764649,1725120646986,-500.0,0.00032876,31]
[336764650,1725120646997,-5162.95,0.00032876,31]
[336764651,1725120647006,-500.0,0.00032876,31]
[336764652,1725120647017,-500.0,0.00032876,31]
[336764653,1725120647028,-674.09,0.00032876,31]
[336764654,1725120647038,-500.0,0.00032876,31]
[336764655,1725120647047,-522.15236701,0.00032876,31]
[336764656,1725120647059,-504.02794381,0.00032876,31]
[336764657,1725120647070,-500.0,0.00032876,31]
[336764658,1725120647080,-869.98,0.00032876,31]
[336764659,1725120647090,-500.0,0.00032876,31]
[336764660,1725120647100,-500.0,0.00032876,31]
[336764661,1725120647110,-1035.69,0.00032876,31]
[336764662,1725120647119,-681.15,0.00032876,31]
[336764663,1725120647129,-845.94,0.00032876,31]
[336764664,1725120647138,-8665.86,0.00032876,31]
[336764665,1725120647148,-500.0,0.00032876,31]
[336764666,1725120647159,-500.0,0.00032876,31]
[336764667,1725120647169,-3130.08,0.00032876,31]
[336764668,1725120647179,-502.61896145,0.00032876,31]
[336764669,1725120647190,-500.0,0.00032876,31]
[336764670,1725120647199,-500.0,0.00032876,31]
[336764671,1725120647209,-566.64751764,0.00032876,31]
[336764672,1725120647218,-500.0,0.00032876,31]
[336764673,1725120647228,-625.86,0.00032876,31]
[336764674,1725120647237,-500.0,0.00032876,31]
[336764675,1725120647247,-953.57,0.00032876,31]
[336764676,1725120647256,-1727.19,0.00032876,31]
[336764677,1725120647340,-977.26,0.00032876,31]
[336764678,1725120647350,-839.62,0.00032876,31]
[336764679,1725120647359,-776.41,0.00032876,31]
[336764680,1725120647369,-500.0,0.00032876,31]
[336764681,1725120647378,-500.0,0.00032876,31]
[336764682,1725120647388,-500.0,0.00032876,31]
[336764683,1725120647397,-667.71,0.00032876,31]
[336764684,1725120647407,-2866.12,0.00032876,31]
[336764685,1725120647417,-1276.54,0.00032876,31]
[336764686,1725120647427,-873.01,0.00032876,31]
[336764687,1725120647436,-500.0,0.00032899,31]
[336764688,1725120647446,-234.46027825,0.00032899,7]
[336764689,1725120647455,-2174.66,0.000329,14]
[336764690,1725120647464,-1031.58,0.000329,14]
[336764691,1725120647474,-150.112233,0.000329,9]
[336764692,1725120647485,-159.61,0.000329,31]
[336764693,1725120647494,-159.61,0.000329,31]
[336764694,1725120647503,-907.0,0.000329,2]
[336764695,1725120647513,-500.0,0.00032925,7]
[336764696,1725120647523,-300.0,0.00032945,7]
[336764697,1725120647532,-3200.0,0.00032945,2]
[336764698,1725120647541,-150.0,0.00032945,7]
[336764699,1725120647550,-151.0,0.00032945,14]
[336764700,1725120647560,-151.0,0.00032945,14]
[336764701,1725120647569,-196.639685,0.00032945,14]
[336764702,1725120647578,-247.580591,0.00032945,14]
[336764703,1725120647589,-247.580591,0.00032945,14]
[336764704,1725120647602,-151.0,0.00032945,14]
[336764705,1725120647611,-151.0,0.00032945,14]
[336764706,1725120647620,-151.0,0.00032945,14]
[336764707,1725120647629,-454.208877,0.00032945,14]
[336764708,1725120647641,-454.208877,0.00032945,14]
[336764709,1725120647650,-600.0,0.00032979,7]
[336764710,1725120647659,-151.0,0.00032984,7]
[336764711,1725120647671,-800.0,0.00033002,7]
[336764712,1725120647681,-151.0,0.00033014,120]
[336764713,1725120647690,-600.0,0.00033017,7]
[336764714,1725120647700,-1073.02070279,0.00033048,2]
[336764715,1725120647709,-669.30726996,0.0003305,2]
[336764716,1725120647719,-500.0,0.00033073,7]
[336764717,1725120647729,-600.0,0.00033089,7]
[336764718,1725120647739,-842.42131702,0.0003309,4]
[336764719,1725120647749,-1249.64,0.00033097,31]
[336764720,1725120647758,-24394.93888898,0.000331,6]
[336764721,1725120647768,-150.112233,0.000331,9]
[336764722,1725120647778,-151.0,0.000331,14]
[336764723,1725120647787,-1249.64,0.0003314,31]
[336764724,1725120647797,-500.0,0.0003314,31]
[336764725,1725120647806,-8424.2131702,0.0003314,4]
[336764726,1725120647816,-500.0,0.00033145,7]
[336764727,1725120647825,-669.30726995,0.00033147,2]
[336764728,1725120647835,-1184.521475,0.00033149,14]
[336764729,1725120647844,-1184.521475,0.00033149,14]
[336764730,1725120647854,-151.0,0.00033149,14]
[336764731,1725120647864,-151.0,0.00033149,14]
[336764732,1725120647874,-151.0,0.00033149,14]
[336764733,1725120647883,-1249.64,0.00033149,31]
[336764734,1725120647905,-1249.64,0.00033149,31]
[336764735,1725120647925,-1249.64,0.00033149,31]
[336764736,1725120647943,-1249.64,0.00033149,31]
[336764737,1725120647963,-1249.64,0.00033149,31]
[336764738,1725120647982,-1249.64,0.00033149,31]
[336764739,1725120647999,-1249.64,0.00033149,31]
[336764740,1725120648018,-1249.64,0.00033149,31]
[336764741,1725120648033,-1249.64,0.00033149,31]
[336764742,1725120648051,-1249.71345067,0.00033149,31]
[336764743,1725120648071,-775.835047,0.00033149,14]
[336764744,1725120648090,-151.045346,0.00033149,14]
[336764745,1725120648102,-775.835047,0.00033149,14]
[336764746,1725120648120,-151.045346,0.00033149,14]
[336764747,1725120648137,-500.0,0.00033149,31]
[336764748,1725120648152,-500.0,0.00033149,31]
[336764749,1725120648168,-500.0,0.00033149,31]
[336764750,1725120648181,-500.0,0.00033149,31]
[336764751,1725120648195,-282.54629748,0.00033149,31]
[336764752,1725120648211,-500.0,0.0003315,31]
[336764753,1725120648225,-500.0,0.0003315,31]
[336764754,1725120648241,-500.0,0.0003315,31]
[336764755,1725120648257,-500.0,0.0003315,31]
[336764756,1725120648272,-913.91,0.0003315,31]
[336764757,1725120648286,-500.0,0.0003315,31]
[336764758,1725120648301,-500.0,0.0003315,31]
[336764759,1725120648317,-500.0,0.0003315,31]
[336764760,1725120648332,-500.0,0.0003315,31]
[336764761,1725120648347,-500.0,0.0003315,31]
[336764762,1725120648362,-500.0,0.0003315,31]
[336764763,1725120648378,-500.0,0.0003315,31]
[336764764,1725120648392,-510.88769925,0.0003315,31]
[336764765,1725120648409,-500.0,0.0003315,31]
[336764766,1725120648424,-500.0,0.0003315,31]
[336764767,1725120648439,-500.0,0.0003315,31]
[336764768,1725120648454,-500.0,0.0003315,31]
[336764769,1725120648471,-500.0,0.0003315,31]
[336764770,1725120648486,-500.0,0.0003315,31]
[336764771,1725120648502,-500.0,0.0003315,31]
[336764772,1725120648516,-500.0,0.0003315,31]
[336764773,1725120648531,-500.0,0.0003315,31]
[336764774,1725120648547,-500.0,0.0003315,31]
[336764775,1725120648564,-500.0,0.0003315,31]
[336764776,1725120648580,-500.0,0.0003315,31]
[336764777,1725120648598,-500.0,0.0003315,31]
[336764778,1725120648613,-500.0,0.0003315,31]
[336764779,1725120648630,-500.0,0.0003315,31]
[336764780,1725120648645,-500.0,0.0003315,31]
[336764781,1725120648655,-500.0,0.0003315,31]
[336764782,1725120648665,-500.0,0.0003315,31]
[336764783,1725120648677,-500.0,0.0003315,31]
[336764784,1725120648687,-500.0,0.0003315,31]
[336764785,1725120648697,-500.0,0.0003315,31]
[336764786,1725120648706,-505.72373609,0.0003315,31]
[336764787,1725120648716,-452.23391578,0.0003315,31]
[336764788,1725120648727,-500.0,0.0003315,31]
[336764789,1725120648892,-278.47701716,0.0003315,31]
[336764790,1725120648915,-500.0,0.0003315,31]
[336764791,1725120648925,-151.0,0.0003315,14]
[336764792,1725120648936,-151.0,0.0003315,14]
[336764793,1725120648947,-151.0,0.0003315,14]
[336764794,1725120648956,-151.0,0.0003315,14]
[336764795,1725120648966,-500.0,0.0003315,31]
[336764796,1725120648976,-500.0,0.0003315,31]
[336764797,1725120648986,-500.0,0.0003315,31]
[336764798,1725120648996,-500.0,0.0003315,31]
[336764799,1725120649006,-500.0,0.0003315,31]
[336764800,1725120649017,-500.0,0.0003315,31]
[336764801,1725120649027,-500.0,0.0003315,31]
[336764802,1725120649037,-500.0,0.0003315,31]
[336764803,1725120649047,-506.37995539,0.0003315,31]
[336764804,1725120649058,-500.0,0.0003315,31]
[336764805,1725120649067,-500.0,0.0003315,31]
[336764806,1725120649077,-500.0,0.0003315,31]
[336764807,1725120649086,-500.0,0.0003315,31]
[336764808,1725120649095,-500.0,0.0003315,31]
[336764809,1725120649105,-500.0,0.0003315,31]
[336764810,1725120649115,-500.0,0.0003315,31]
[336764811,1725120649125,-504.81013191,0.0003315,31]
[336764812,1725120649134,-500.0,0.0003315,31]
[336764813,1725120649144,-510.96989254,0.0003315,31]
[336764814,1725120649154,-500.0,0.0003315,31]
[336764815,1725120649165,-500.0,0.0003315,31]
[336764816,1725120649175,-500.0,0.0003315,31]
[336764817,1725120649185,-780.28,0.0003315,31]
[336764818,1725120649194,-262.82426905,0.0003315,31]
[336764819,1725120649784,-237.17573095,0.0003315,31]
[336764820,1725120649793,-500.0,0.0003315,31]
[336764821,1725120649802,-608.32214626,0.0003315,31]
[336764822,1725120649811,-500.0,0.0003315,31]
[336764823,1725120649820,-500.0,0.0003315,31]
[336764824,1725120649830,-500.0,0.0003315,31]
[336764825,1725120649839,-500.0,0.0003315,31]
[336764826,1725120649849,-500.0,0.0003315,31]
[336764827,1725120649859,-500.0,0.0003315,31]
[336764828,1725120649868,-500.0,0.0003315,31]
[336764829,1725120649878,-500.0,0.0003315,31]